[Event "*** Titled Tuesday Blitz"]
[Site "Chess.com"]
[Date "2021.02.16"]
[Round "4"]
[White "Manukyan_Artak"]
[Black "Artyom_ChessMate"]
[Result "1/2-1/2"]
[WhiteElo "2393"]
[BlackElo "2547"]
[TimeControl "180+1"]
[EndTime "10:44:07 PST"]
[Termination "Game drawn by repetition"]

1. e4 {[%clk 0:03:00.9]} 1... c5 {[%clk 0:02:57.6]} 2. Nf3 {[%clk 0:03:01.1]}
2... d6 {[%clk 0:02:57.4]} 3. Bb5+ {[%clk 0:03:00.3]} 3... Bd7 {[%clk
0:02:57.3]} 4. Bxd7+ {[%clk 0:03:00.3]} 4... Qxd7 {[%clk 0:02:58.2]} 5. c4
{[%clk 0:03:00.9]} 5... Nc6 {[%clk 0:02:58.1]} 6. Nc3 {[%clk 0:03:01.2]} 6... g6
{[%clk 0:02:58.6]} 7. O-O {[%clk 0:03:01.2]} 7... Bg7 {[%clk 0:02:59.1]} 8. d3
{[%clk 0:02:56.1]} 8... Nf6 {[%clk 0:02:58.9]} 9. Bg5 {[%clk 0:02:55.9]} 9...
O-O {[%clk 0:02:58.8]} 10. Qd2 {[%clk 0:02:56.2]} 10... Rfd8 {[%clk 0:02:56.2]}
11. Bh6 {[%clk 0:02:55.4]} 11... Bh8 {[%clk 0:02:56.4]} 12. Nd5 {[%clk
0:02:49.8]} 12... e6 {[%clk 0:02:47]} 13. Nxf6+ {[%clk 0:02:49]} 13... Bxf6
{[%clk 0:02:47.9]} 14. Bg5 {[%clk 0:02:49.2]} 14... Bxg5 {[%clk 0:02:46.7]} 15.
Qxg5 {[%clk 0:02:48.6]} 15... d5 {[%clk 0:02:46.1]} 16. Qh6 {[%clk 0:02:35.5]}
16... Nb4 {[%clk 0:02:25]} 17. Ne5 {[%clk 0:01:48.8]} 17... Qe7 {[%clk
0:02:10.4]} 18. Rae1 {[%clk 0:01:39.3]} 18... Nc2 {[%clk 0:02:07.8]} 19. Re2
{[%clk 0:01:31.6]} 19... Nd4 {[%clk 0:02:07]} 20. Re3 {[%clk 0:01:31.4]} 20...
Qf6 {[%clk 0:01:54.5]} 21. Ng4 {[%clk 0:01:29.1]} 21... Qg7 {[%clk 0:01:52.5]}
22. Qg5 {[%clk 0:01:12.8]} 22... f5 {[%clk 0:00:55.4]} 23. exd5 {[%clk
0:01:04.4]} 23... fxg4 {[%clk 0:00:48.3]} 24. dxe6 {[%clk 0:01:04.2]} 24... Re8
{[%clk 0:00:43.3]} 25. Qxg4 {[%clk 0:00:59.9]} 25... Re7 {[%clk 0:00:40.7]} 26.
Re4 {[%clk 0:00:40.1]} 26... Rae8 {[%clk 0:00:39.5]} 27. b4 {[%clk 0:00:38.1]}
27... Rxe6 {[%clk 0:00:32]} 28. Rxe6 {[%clk 0:00:36.6]} 28... Rxe6 {[%clk
0:00:32.9]} 29. bxc5 {[%clk 0:00:36.2]} 29... Qe5 {[%clk 0:00:32]} 30. h4 {[%clk
0:00:31.2]} 30... h5 {[%clk 0:00:29.2]} 31. Qh3 {[%clk 0:00:25.1]} 31... Ne2+
{[%clk 0:00:20.7]} 32. Kh1 {[%clk 0:00:24]} 32... Nf4 {[%clk 0:00:21.6]} 33. Qf3
{[%clk 0:00:23.5]} 33... Re7 {[%clk 0:00:15.9]} 34. Rb1 {[%clk 0:00:18]} 34...
Qf5 {[%clk 0:00:14.2]} 35. Rxb7 {[%clk 0:00:16.3]} 35... Rxb7 {[%clk 0:00:13.3]}
36. Qxb7 {[%clk 0:00:17.2]} 36... Nxd3 {[%clk 0:00:12.9]} 37. Qb8+ {[%clk
0:00:15.2]} 37... Kg7 {[%clk 0:00:12.5]} 38. Qxa7+ {[%clk 0:00:15.4]} 38... Kh6
{[%clk 0:00:12.4]} 39. c6 {[%clk 0:00:15.9]} 39... Nxf2+ {[%clk 0:00:10.3]} 40.
Kg1 {[%clk 0:00:15.5]} 40... Ng4 {[%clk 0:00:09.8]} 41. Qb6 {[%clk 0:00:10.6]}
41... Qe4 {[%clk 0:00:06.8]} 42. Qb4 {[%clk 0:00:07.8]} 42... Qxc6 {[%clk
0:00:06.4]} 43. Qd2+ {[%clk 0:00:07.4]} 43... Kg7 {[%clk 0:00:05.9]} 44. Qd4+
{[%clk 0:00:07.2]} 44... Kh7 {[%clk 0:00:06.4]} 45. Qd5 {[%clk 0:00:07.3]} 45...
Qxd5 {[%clk 0:00:05.2]} 46. cxd5 {[%clk 0:00:08.2]} 46... Kg7 {[%clk 0:00:06.1]}
47. a4 {[%clk 0:00:07.9]} 47... Ne5 {[%clk 0:00:04.6]} 48. a5 {[%clk 0:00:08.2]}
48... Nd7 {[%clk 0:00:05.3]} 49. a6 {[%clk 0:00:08.3]} 49... Kf6 {[%clk
0:00:05.9]} 50. a7 {[%clk 0:00:08.1]} 50... Nb6 {[%clk 0:00:06.2]} 51. g4 {[%clk
0:00:08.8]} 51... Ke5 {[%clk 0:00:05.8]} 52. gxh5 {[%clk 0:00:08.6]} 52... gxh5
{[%clk 0:00:06.7]} 53. Kf2 {[%clk 0:00:08.6]} 53... Kxd5 {[%clk 0:00:07.3]} 54.
Kf3 {[%clk 0:00:09.4]} 54... Ke5 {[%clk 0:00:07.7]} 55. Ke3 {[%clk 0:00:09.9]}
55... Kf5 {[%clk 0:00:08.1]} 56. Kf3 {[%clk 0:00:09.6]} 56... Na8 {[%clk
0:00:08.5]} 57. Kg3 {[%clk 0:00:09.3]} 57... Ke4 {[%clk 0:00:08.9]} 58. Kg2
{[%clk 0:00:09.6]} 58... Kf4 {[%clk 0:00:09.8]} 59. Kh3 {[%clk 0:00:09.7]} 59...
Kf3 {[%clk 0:00:10.3]} 60. Kh2 {[%clk 0:00:09.9]} 60... Kg4 {[%clk 0:00:11.2]}
61. Kg2 {[%clk 0:00:10.6]} 61... Kf4 {[%clk 0:00:11.6]} 62. Kh2 {[%clk
0:00:11.5]} 62... Kg4 {[%clk 0:00:11.9]} 63. Kg2 {[%clk 0:00:12.1]} 63... Kxh4
{[%clk 0:00:12.8]} 64. Kh2 {[%clk 0:00:13]} 64... Kg4 {[%clk 0:00:13.7]} 65. Kg2
{[%clk 0:00:13.4]} 65... h4 {[%clk 0:00:14.5]} 66. Kh2 {[%clk 0:00:13.6]} 66...
Kf4 {[%clk 0:00:15.4]} 67. Kg2 {[%clk 0:00:14]} 67... Kg5 {[%clk 0:00:15.4]} 68.
Kh3 {[%clk 0:00:14.3]} 68... Kh5 {[%clk 0:00:15.9]} 69. Kh2 {[%clk 0:00:14.8]}
69... Kg4 {[%clk 0:00:16.8]} 70. Kg2 {[%clk 0:00:15.3]} 70... Nc7 {[%clk
0:00:13.6]} 71. Kh2 {[%clk 0:00:15.3]} 71... Kf4 {[%clk 0:00:13.9]} 72. Kh3
{[%clk 0:00:15.5]} 72... Kg5 {[%clk 0:00:14.5]} 73. Kg2 {[%clk 0:00:15.8]} 73...
Kg4 {[%clk 0:00:15.4]} 74. Kh2 {[%clk 0:00:16]} 74... h3 {[%clk 0:00:15.9]} 75.
Kg1 {[%clk 0:00:15.9]} 75... Kg3 {[%clk 0:00:15.7]} 76. Kh1 {[%clk 0:00:15.9]}
76... Na8 {[%clk 0:00:12.1]} 77. Kg1 {[%clk 0:00:15.6]} 77... Nb6 {[%clk
0:00:13]} 78. Kh1 {[%clk 0:00:15.5]} 78... Kh4 {[%clk 0:00:07.6]} 79. Kh2 {[%clk
0:00:14.8]} 79... Kg4 {[%clk 0:00:08.1]} 80. Kh1 {[%clk 0:00:15.2]} 80... Na8
{[%clk 0:00:09]} 81. Kh2 {[%clk 0:00:15.3]} 81... Kh4 {[%clk 0:00:09.6]} 82. Kh1
{[%clk 0:00:15.3]} 82... Kg3 {[%clk 0:00:10.5]} 83. Kg1 {[%clk 0:00:15.6]} 83...
Nc7 {[%clk 0:00:08.7]} 84. Kh1 {[%clk 0:00:15.6]} 84... Na8 {[%clk 0:00:04.7]}
1/2-1/2

[Event "*** Titled Tuesday Blitz"]
[Site "Chess.com"]
[Date "2021.02.16"]
[Round "4"]
[White "SirStrateg"]
[Black "GadimbayliA"]
[Result "0-1"]
[WhiteElo "2537"]
[BlackElo "2838"]
[TimeControl "180+1"]
[EndTime "10:44:08 PST"]
[Termination "GadimbayliA won by resignation"]

1. d4 {[%clk 0:02:52.8]} 1... d5 {[%clk 0:02:59.8]} 2. Bf4 {[%clk 0:02:52.4]}
2... Nf6 {[%clk 0:02:59.5]} 3. e3 {[%clk 0:02:52.7]} 3... Nc6 {[%clk 0:02:59.5]}
4. c4 {[%clk 0:02:46.1]} 4... e6 {[%clk 0:02:58.9]} 5. Nc3 {[%clk 0:02:45.7]}
5... Bd6 {[%clk 0:02:57.7]} 6. Bg3 {[%clk 0:02:38.6]} 6... O-O {[%clk
0:02:48.2]} 7. Nf3 {[%clk 0:02:38]} 7... Ne4 {[%clk 0:02:41.8]} 8. cxd5 {[%clk
0:02:37.7]} 8... Bb4 {[%clk 0:02:40.6]} 9. Qb3 {[%clk 0:02:16.7]} 9... exd5
{[%clk 0:02:37.5]} 10. Bb5 {[%clk 0:02:11.8]} 10... Bxc3+ {[%clk 0:02:29.5]} 11.
bxc3 {[%clk 0:02:11.6]} 11... Na5 {[%clk 0:02:30.4]} 12. Qa4 {[%clk 0:02:09.4]}
12... c6 {[%clk 0:02:29.7]} 13. Bd3 {[%clk 0:02:02.8]} 13... Bf5 {[%clk
0:02:25.3]} 14. Qc2 {[%clk 0:01:48.6]} 14... Nc4 {[%clk 0:02:25]} 15. Nh4 {[%clk
0:01:43.2]} 15... Nxg3 {[%clk 0:02:07.8]} 16. hxg3 {[%clk 0:01:43.2]} 16... Bxd3
{[%clk 0:02:07.5]} 17. Qxd3 {[%clk 0:01:44.1]} 17... g6 {[%clk 0:02:08.4]} 18.
Nf3 {[%clk 0:01:41.4]} 18... Re8 {[%clk 0:02:06]} 19. Nd2 {[%clk 0:01:39.3]}
19... Nd6 {[%clk 0:02:06.1]} 20. c4 {[%clk 0:01:38]} 20... dxc4 {[%clk
0:01:47.8]} 21. Nxc4 {[%clk 0:01:37.8]} 21... Nxc4 {[%clk 0:01:48.3]} 22. Qxc4
{[%clk 0:01:38.7]} 22... Qa5+ {[%clk 0:01:48.8]} 23. Kf1 {[%clk 0:01:35.6]}
23... Rad8 {[%clk 0:01:47]} 24. Rb1 {[%clk 0:01:27.7]} 24... Re7 {[%clk
0:01:47]} 25. Rh4 {[%clk 0:01:22.3]} 25... Rd5 {[%clk 0:01:44.2]} 26. Rf4 {[%clk
0:01:15]} 26... Qd2 {[%clk 0:01:38.5]} 27. Kg1 {[%clk 0:01:06.7]} 27... Red7
{[%clk 0:01:23.2]} 28. g4 {[%clk 0:01:00.7]} 28... Qa5 {[%clk 0:01:15.6]} 29. a4
{[%clk 0:00:58.1]} 29... h5 {[%clk 0:01:13.4]} 30. gxh5 {[%clk 0:00:44.9]} 30...
Rxh5 {[%clk 0:01:14.3]} 31. g4 {[%clk 0:00:42.3]} 31... Rhd5 {[%clk 0:01:11.9]}
32. Kg2 {[%clk 0:00:42]} 32... Qd8 {[%clk 0:01:05.6]} 33. Rh1 {[%clk 0:00:32.7]}
33... Qg5 {[%clk 0:01:04.4]} 34. Kf3 {[%clk 0:00:27.9]} 34... R5d6 {[%clk
0:00:57.3]} 35. Qc5 {[%clk 0:00:20.5]} 35... Qxc5 {[%clk 0:00:47]} 36. dxc5
{[%clk 0:00:20.8]} 36... Rd2 {[%clk 0:00:47.5]} 37. Rb1 {[%clk 0:00:19.6]} 37...
a5 {[%clk 0:00:38.8]} 38. Rc4 {[%clk 0:00:17.5]} 38... Ra2 {[%clk 0:00:35.3]}
39. Kg3 {[%clk 0:00:17.7]} 39... Kf8 {[%clk 0:00:33.5]} 40. g5 {[%clk
0:00:16.5]} 40... Ke8 {[%clk 0:00:32.9]} 41. Rh1 {[%clk 0:00:14.5]} 41... Rd5
{[%clk 0:00:25.1]} 42. f3 {[%clk 0:00:11.5]} 42... Rxg5+ {[%clk 0:00:25]} 43.
Kf4 {[%clk 0:00:11.7]} 43... Rf5+ {[%clk 0:00:25]} 44. Ke4 {[%clk 0:00:12.3]}
44... Ke7 {[%clk 0:00:22.5]} 45. Rh8 {[%clk 0:00:12]} 45... Rb2 {[%clk
0:00:21.5]} 46. Rc8 {[%clk 0:00:11.4]} 46... Kd7 {[%clk 0:00:21.3]} 47. Ra8
{[%clk 0:00:11.1]} 47... Rb4 {[%clk 0:00:20.6]} 48. Kd4 {[%clk 0:00:09.8]} 48...
Rxc4+ {[%clk 0:00:20.4]} 49. Kxc4 {[%clk 0:00:10.1]} 49... Rxf3 {[%clk 0:00:21]}
50. Kd4 {[%clk 0:00:10.7]} 50... Rf1 {[%clk 0:00:18.6]} 51. Rxa5 {[%clk
0:00:10.7]} 51... Rd1+ {[%clk 0:00:19.3]} 52. Ke4 {[%clk 0:00:10.8]} 52... Rd5
{[%clk 0:00:19.1]} 53. Ra7 {[%clk 0:00:11]} 53... Kc7 {[%clk 0:00:18]} 54. Ra8
{[%clk 0:00:11.5]} 54... Rxc5 {[%clk 0:00:17.8]} 55. Rf8 {[%clk 0:00:11.7]}
55... Rf5 {[%clk 0:00:18]} 56. a5 {[%clk 0:00:10.9]} 56... Rxa5 {[%clk
0:00:17.7]} 57. Rxf7+ {[%clk 0:00:10.9]} 57... Kb6 {[%clk 0:00:18.6]} 58. Rg7
{[%clk 0:00:11.2]} 58... g5 {[%clk 0:00:19]} 59. Kd4 {[%clk 0:00:10.9]} 59...
Rd5+ {[%clk 0:00:15.4]} 60. Kc4 {[%clk 0:00:10.7]} 60... Ka6 {[%clk 0:00:13.7]}
61. e4 {[%clk 0:00:11.2]} 61... b5+ {[%clk 0:00:13.8]} 62. Kc3 {[%clk
0:00:11.4]} 62... Rc5+ {[%clk 0:00:14.2]} 63. Kd4 {[%clk 0:00:11.7]} 63... Rc4+
{[%clk 0:00:14.5]} 64. Kd3 {[%clk 0:00:12.1]} 64... Rc1 {[%clk 0:00:13]} 65.
Rxg5 {[%clk 0:00:12.3]} 65... b4 {[%clk 0:00:13.4]} 66. Rg2 {[%clk 0:00:10.4]}
66... Kb5 {[%clk 0:00:12.7]} 67. e5 {[%clk 0:00:08.6]} 67... Re1 {[%clk
0:00:12.1]} 68. Kd4 {[%clk 0:00:06.8]} 68... c5+ {[%clk 0:00:10.5]} 69. Kd5
{[%clk 0:00:06.9]} 69... b3 {[%clk 0:00:09]} 70. e6 {[%clk 0:00:06.2]} 70... c4
{[%clk 0:00:09.1]} 71. Rg8 {[%clk 0:00:04.4]} 71... Kb4 {[%clk 0:00:06.1]} 72.
Rc8 {[%clk 0:00:02.5]} 72... Rd1+ {[%clk 0:00:04.5]} 73. Ke5 {[%clk 0:00:02.3]}
73... c3 {[%clk 0:00:04.5]} 74. e7 {[%clk 0:00:02.5]} 74... Re1+ {[%clk
0:00:05.4]} 75. Kd6 {[%clk 0:00:02.2]} 75... Rxe7 {[%clk 0:00:06.3]} 76. Kxe7
{[%clk 0:00:02.3]} 76... b2 {[%clk 0:00:07.2]} 77. Rb8+ {[%clk 0:00:02.5]} 77...
Ka3 {[%clk 0:00:07.3]} 78. Ra8+ {[%clk 0:00:03]} 78... Kb3 {[%clk 0:00:07.5]}
79. Rb8+ {[%clk 0:00:03.4]} 79... Kc2 {[%clk 0:00:08]} 0-1

[Event "*** Titled Tuesday Blitz"]
[Site "Chess.com"]
[Date "2021.02.16"]
[Round "4"]
[White "Artem_Sadovsky"]
[Black "Funo09"]
[Result "0-1"]
[WhiteElo "2577"]
[BlackElo "2773"]
[TimeControl "180+1"]
[EndTime "10:44:19 PST"]
[Termination "Funo09 won by resignation"]

1. Nf3 {[%clk 0:03:00.9]} 1... Nf6 {[%clk 0:02:57.6]} 2. c4 {[%clk 0:03:01]}
2... Nc6 {[%clk 0:02:57.2]} 3. b3 {[%clk 0:03:01.3]} 3... e5 {[%clk 0:02:57]} 4.
Bb2 {[%clk 0:03:01.8]} 4... d6 {[%clk 0:02:57.3]} 5. g3 {[%clk 0:03:00.8]} 5...
g6 {[%clk 0:02:57.8]} 6. Bg2 {[%clk 0:03:01.3]} 6... Bg7 {[%clk 0:02:58.4]} 7.
O-O {[%clk 0:03:02]} 7... O-O {[%clk 0:02:59]} 8. Ne1 {[%clk 0:02:57.8]} 8... h5
{[%clk 0:02:56.2]} 9. h4 {[%clk 0:02:54.8]} 9... Be6 {[%clk 0:02:55.4]} 10. Nc3
{[%clk 0:02:50.7]} 10... Qd7 {[%clk 0:02:54.6]} 11. Nd5 {[%clk 0:02:45]} 11...
Bh3 {[%clk 0:02:53.2]} 12. Nxf6+ {[%clk 0:02:32.7]} 12... Bxf6 {[%clk
0:02:52.7]} 13. Nc2 {[%clk 0:02:29]} 13... Ne7 {[%clk 0:02:31.3]} 14. d4 {[%clk
0:02:25.5]} 14... e4 {[%clk 0:02:24.6]} 15. Bxe4 {[%clk 0:02:03]} 15... Bxf1
{[%clk 0:02:23.7]} 16. Qxf1 {[%clk 0:02:02.6]} 16... c6 {[%clk 0:02:21.3]} 17.
Qg2 {[%clk 0:01:50.9]} 17... Rfe8 {[%clk 0:02:20.3]} 18. e3 {[%clk 0:01:49.1]}
18... Nf5 {[%clk 0:02:20]} 19. Qf3 {[%clk 0:01:44.8]} 19... Bg7 {[%clk
0:01:49.6]} 20. Bxf5 {[%clk 0:01:42.8]} 20... Qxf5 {[%clk 0:01:49.4]} 21. Qxf5
{[%clk 0:01:43]} 21... gxf5 {[%clk 0:01:50.3]} 22. Ne1 {[%clk 0:01:38]} 22...
Rad8 {[%clk 0:01:46.4]} 23. Nd3 {[%clk 0:01:35.1]} 23... Bh6 {[%clk 0:01:45.6]}
24. Kg2 {[%clk 0:01:32.5]} 24... Kh7 {[%clk 0:01:44.5]} 25. Kf3 {[%clk
0:01:31.8]} 25... Kg6 {[%clk 0:01:45]} 26. Rd1 {[%clk 0:01:27.6]} 26... Re4
{[%clk 0:01:44.2]} 27. Ba3 {[%clk 0:01:22.4]} 27... a6 {[%clk 0:01:38.9]} 28. c5
{[%clk 0:01:18.6]} 28... d5 {[%clk 0:01:29.9]} 29. Bb4 {[%clk 0:01:13.8]} 29...
Rde8 {[%clk 0:01:27.3]} 30. Ba5 {[%clk 0:01:12.3]} 30... f6 {[%clk 0:01:26]} 31.
Rd2 {[%clk 0:00:50.6]} 31... f4 {[%clk 0:01:13.4]} 32. gxf4 {[%clk 0:00:36.5]}
32... Kf5 {[%clk 0:01:13.8]} 33. Nc1 {[%clk 0:00:29.5]} 33... Bxf4 {[%clk
0:00:30.2]} 34. exf4 {[%clk 0:00:30.4]} 34... Rxf4+ {[%clk 0:00:30.4]} 35. Kg2
{[%clk 0:00:28.3]} 35... Rxh4 {[%clk 0:00:24.2]} 36. Ne2 {[%clk 0:00:20.6]}
36... Rg4+ {[%clk 0:00:24]} 37. Ng3+ {[%clk 0:00:20.5]} 37... Kg6 {[%clk
0:00:24]} 38. Kh3 {[%clk 0:00:20]} 38... Rf4 {[%clk 0:00:20.2]} 39. Kg2 {[%clk
0:00:13.2]} 39... h4 {[%clk 0:00:18.5]} 40. Nf1 {[%clk 0:00:13.6]} 40... Re1
{[%clk 0:00:17.5]} 41. Nh2 {[%clk 0:00:12.1]} 41... Ra1 {[%clk 0:00:15.1]} 42.
a4 {[%clk 0:00:11.7]} 42... Rb1 {[%clk 0:00:14.5]} 43. Rd3 {[%clk 0:00:11.9]}
43... Rb2 {[%clk 0:00:13.6]} 44. Nf3 {[%clk 0:00:12.3]} 44... Kh5 {[%clk
0:00:13.8]} 45. Bc7 {[%clk 0:00:10.9]} 45... Rg4+ {[%clk 0:00:12.9]} 46. Kf1
{[%clk 0:00:11.2]} 46... Rb1+ {[%clk 0:00:13.2]} 47. Ke2 {[%clk 0:00:11.5]}
47... Re4+ {[%clk 0:00:13.3]} 48. Kd2 {[%clk 0:00:11.5]} 48... Rb2+ {[%clk
0:00:13]} 49. Kc3 {[%clk 0:00:12.1]} 49... Rxf2 {[%clk 0:00:13.9]} 50. Nd2
{[%clk 0:00:10.6]} 50... Rg4 {[%clk 0:00:12.9]} 51. Kb4 {[%clk 0:00:08.1]} 51...
f5 {[%clk 0:00:12.5]} 52. Nf3 {[%clk 0:00:08.2]} 52... f4 {[%clk 0:00:10.6]} 53.
Ne5 {[%clk 0:00:07.4]} 53... Rg3 {[%clk 0:00:10.9]} 54. Rd1 {[%clk 0:00:07.5]}
54... h3 {[%clk 0:00:11]} 55. Rh1 {[%clk 0:00:05.1]} 55... h2 {[%clk 0:00:10.5]}
56. Nd7 {[%clk 0:00:05.2]} 56... Rg1 {[%clk 0:00:09.8]} 57. Rxh2+ {[%clk
0:00:05.7]} 57... Rxh2 {[%clk 0:00:10.7]} 58. Bxf4 {[%clk 0:00:04.1]} 58... Rh4
{[%clk 0:00:10.9]} 59. Be5 {[%clk 0:00:04.2]} 59... Rb1 {[%clk 0:00:09.3]} 60.
Nf6+ {[%clk 0:00:03.4]} 60... Kg5 {[%clk 0:00:09.7]} 61. Ne8 {[%clk 0:00:03.1]}
61... Rh3 {[%clk 0:00:08.8]} 62. Ka5 {[%clk 0:00:03.3]} 62... Rhxb3 {[%clk
0:00:08.6]} 63. Nd6 {[%clk 0:00:03.5]} 63... R3b2 {[%clk 0:00:08.1]} 64. Bg7
{[%clk 0:00:03.1]} 64... Kg4 {[%clk 0:00:08.2]} 65. Bf6 {[%clk 0:00:03.5]} 65...
Kf3 {[%clk 0:00:08.5]} 66. Bd8 {[%clk 0:00:04]} 66... Ra2 {[%clk 0:00:04.9]} 67.
Bb6 {[%clk 0:00:04.9]} 67... Rba1 {[%clk 0:00:04.3]} 68. Bc7 {[%clk 0:00:05.4]}
68... Rxa4+ {[%clk 0:00:04.6]} 69. Kb6 {[%clk 0:00:06.3]} 69... Rb4+ {[%clk
0:00:04.9]} 70. Ka7 {[%clk 0:00:07.2]} 70... Rxd4 {[%clk 0:00:04.7]} 71. Bb6
{[%clk 0:00:08.1]} 71... Rdd1 {[%clk 0:00:02.6]} 72. Kxb7 {[%clk 0:00:09]} 72...
d4 {[%clk 0:00:03.5]} 73. Kxc6 {[%clk 0:00:09.9]} 73... d3 {[%clk 0:00:04.4]}
74. Nc4 {[%clk 0:00:10.3]} 74... Rac1 {[%clk 0:00:04.3]} 75. Ne5+ {[%clk
0:00:10.2]} 75... Ke4 {[%clk 0:00:04.3]} 76. Kd6 {[%clk 0:00:10.4]} 76... d2
{[%clk 0:00:03.8]} 77. Ba5 {[%clk 0:00:11]} 77... Rc2 {[%clk 0:00:02.8]} 78. c6
{[%clk 0:00:11.4]} 78... Re1 {[%clk 0:00:02.5]} 79. Bxd2 {[%clk 0:00:10.3]}
79... Rd1 {[%clk 0:00:02.6]} 80. Ke6 {[%clk 0:00:11.2]} 80... Rcxd2 {[%clk
0:00:03]} 81. c7 {[%clk 0:00:10.3]} 81... Rc2 {[%clk 0:00:03.3]} 82. Ng4 {[%clk
0:00:06.4]} 82... Rxc7 {[%clk 0:00:02.6]} 83. Nf2+ {[%clk 0:00:07.3]} 83... Kd4
{[%clk 0:00:03.3]} 84. Nxd1 {[%clk 0:00:08.2]} 84... a5 {[%clk 0:00:03.9]} 85.
Nb2 {[%clk 0:00:08.9]} 85... Rb7 {[%clk 0:00:04.1]} 86. Na4 {[%clk 0:00:09.8]}
86... Rb4 {[%clk 0:00:04.3]} 87. Kd6 {[%clk 0:00:10.4]} 0-1

[Event "*** Titled Tuesday Blitz"]
[Site "Chess.com"]
[Date "2021.02.16"]
[Round "4"]
[White "zmeeed67"]
[Black "SanQui14"]
[Result "1-0"]
[WhiteElo "2318"]
[BlackElo "2435"]
[TimeControl "180+1"]
[EndTime "10:44:25 PST"]
[Termination "zmeeed67 won by checkmate"]

1. e4 {[%clk 0:03:00.9]} 1... e5 {[%clk 0:02:59.4]} 2. Nf3 {[%clk 0:02:59.8]}
2... Nc6 {[%clk 0:02:59.9]} 3. c3 {[%clk 0:03:00.1]} 3... Nf6 {[%clk 0:02:59.4]}
4. d4 {[%clk 0:03:00.1]} 4... exd4 {[%clk 0:02:59.9]} 5. e5 {[%clk 0:02:59.9]}
5... Ne4 {[%clk 0:03:00.2]} 6. Bd3 {[%clk 0:02:57.3]} 6... d5 {[%clk 0:03:00.4]}
7. cxd4 {[%clk 0:02:56.9]} 7... Be7 {[%clk 0:02:50.6]} 8. O-O {[%clk 0:02:55.7]}
8... O-O {[%clk 0:02:50.3]} 9. a3 {[%clk 0:02:53.6]} 9... Bg4 {[%clk 0:02:47.6]}
10. Be3 {[%clk 0:02:52.8]} 10... f5 {[%clk 0:02:35]} 11. exf6 {[%clk 0:02:48.4]}
11... Bxf6 {[%clk 0:02:34.7]} 12. Be2 {[%clk 0:02:47.2]} 12... Qd7 {[%clk
0:02:25.6]} 13. Nc3 {[%clk 0:02:47.1]} 13... Rae8 {[%clk 0:02:22.9]} 14. Qb3
{[%clk 0:02:41.9]} 14... Be6 {[%clk 0:02:11.5]} 15. Rad1 {[%clk 0:02:23.3]}
15... Bf7 {[%clk 0:02:10.2]} 16. Qxb7 {[%clk 0:02:10.9]} 16... Rb8 {[%clk
0:02:04.3]} 17. Qa6 {[%clk 0:02:10.8]} 17... Rxb2 {[%clk 0:01:54]} 18. Na4
{[%clk 0:02:06.5]} 18... Ra2 {[%clk 0:01:23.2]} 19. Bb5 {[%clk 0:01:58.3]} 19...
Nb8 {[%clk 0:01:22.9]} 20. Bxd7 {[%clk 0:01:39.4]} 20... Nxa6 {[%clk 0:01:22.9]}
21. Ra1 {[%clk 0:01:39.6]} 21... Rxa1 {[%clk 0:01:17.1]} 22. Rxa1 {[%clk
0:01:38.8]} 22... Rb8 {[%clk 0:01:17.7]} 23. h4 {[%clk 0:01:30.2]} 23... Rb3
{[%clk 0:01:15.7]} 24. Ne5 {[%clk 0:01:25.5]} 24... Be7 {[%clk 0:01:10.4]} 25.
Bc6 {[%clk 0:01:05]} 25... Be6 {[%clk 0:01:06.9]} 26. Bc1 {[%clk 0:00:52.2]}
26... Bxh4 {[%clk 0:00:57.6]} 27. f4 {[%clk 0:00:50.1]} 27... Bf2+ {[%clk
0:00:52.9]} 28. Kh2 {[%clk 0:00:49]} 28... Bxd4 {[%clk 0:00:52]} 29. Ra2 {[%clk
0:00:49.1]} 29... Nb8 {[%clk 0:00:19]} 30. Ba8 {[%clk 0:00:45.6]} 30... c5
{[%clk 0:00:17.5]} 31. f5 {[%clk 0:00:39.3]} 31... Bxf5 {[%clk 0:00:16.5]} 32.
Bxd5+ {[%clk 0:00:36.8]} 32... Kf8 {[%clk 0:00:15.6]} 33. Bxb3 {[%clk
0:00:35.5]} 33... Bxe5+ {[%clk 0:00:16.1]} 34. Kg1 {[%clk 0:00:33.6]} 34... Bd4+
{[%clk 0:00:16]} 35. Kh2 {[%clk 0:00:33]} 35... Nc6 {[%clk 0:00:16.4]} 36. Bd5
{[%clk 0:00:30.3]} 36... Be5+ {[%clk 0:00:16.3]} 37. Kg1 {[%clk 0:00:30.1]}
37... Nd4 {[%clk 0:00:15.1]} 38. Bxe4 {[%clk 0:00:26.4]} 38... Bxe4 {[%clk
0:00:16]} 39. Nc3 {[%clk 0:00:26]} 39... Bg6 {[%clk 0:00:13.9]} 40. Be3 {[%clk
0:00:24.6]} 40... Ne6 {[%clk 0:00:11.2]} 41. Rf2+ {[%clk 0:00:23.5]} 41... Ke7
{[%clk 0:00:11.2]} 42. Nd5+ {[%clk 0:00:23.8]} 42... Kd6 {[%clk 0:00:11.4]} 43.
Nf4 {[%clk 0:00:23.7]} 43... Nxf4 {[%clk 0:00:09.5]} 44. Bxf4 {[%clk 0:00:23.3]}
44... c4 {[%clk 0:00:08.3]} 45. Bxe5+ {[%clk 0:00:23]} 45... Kxe5 {[%clk
0:00:09.2]} 46. Kf1 {[%clk 0:00:23.4]} 46... c3 {[%clk 0:00:09.3]} 47. Ke1
{[%clk 0:00:23.4]} 47... c2 {[%clk 0:00:09.8]} 48. Kd2 {[%clk 0:00:23.3]} 48...
Kd4 {[%clk 0:00:10.2]} 49. Rf4+ {[%clk 0:00:20.6]} 49... Kc5 {[%clk 0:00:10.4]}
50. Ra4 {[%clk 0:00:20.2]} 50... Kb6 {[%clk 0:00:10.4]} 51. Rd4 {[%clk
0:00:19.5]} 51... a5 {[%clk 0:00:10.8]} 52. Rd7 {[%clk 0:00:19]} 52... Kb5
{[%clk 0:00:11.1]} 53. Rxg7 {[%clk 0:00:18.5]} 53... Ka4 {[%clk 0:00:11.6]} 54.
Ra7 {[%clk 0:00:18.7]} 54... Be4 {[%clk 0:00:10.1]} 55. g3 {[%clk 0:00:17.7]}
55... Bg6 {[%clk 0:00:08.7]} 56. Kc1 {[%clk 0:00:17.7]} 56... Be4 {[%clk
0:00:08.6]} 57. Kb2 {[%clk 0:00:17.5]} 57... Bg6 {[%clk 0:00:08.4]} 58. Rc7
{[%clk 0:00:17.1]} 58... Kb5 {[%clk 0:00:08.4]} 59. Rc3 {[%clk 0:00:15]} 59...
Ka4 {[%clk 0:00:06.2]} 60. Re3 {[%clk 0:00:14.6]} 60... Kb5 {[%clk 0:00:06.5]}
61. Rf3 {[%clk 0:00:14.5]} 61... Kc4 {[%clk 0:00:06.7]} 62. Rf4+ {[%clk
0:00:14.9]} 62... Kd3 {[%clk 0:00:06.3]} 63. Kc1 {[%clk 0:00:14.5]} 63... Kc3
{[%clk 0:00:05.6]} 64. Ra4 {[%clk 0:00:14.1]} 64... Kb3 {[%clk 0:00:04.2]} 65.
Rxa5 {[%clk 0:00:14.2]} 65... Be8 {[%clk 0:00:02.8]} 66. Ra7 {[%clk 0:00:13.8]}
66... Bg6 {[%clk 0:00:02.9]} 67. a4 {[%clk 0:00:11.8]} 67... Kb4 {[%clk
0:00:03.3]} 68. a5 {[%clk 0:00:12]} 68... Kb5 {[%clk 0:00:03.8]} 69. Ra8 {[%clk
0:00:11.8]} 69... Kc6 {[%clk 0:00:03.1]} 70. a6 {[%clk 0:00:11.3]} 70... Kb6
{[%clk 0:00:03.3]} 71. Kd2 {[%clk 0:00:10.6]} 71... Bf5 {[%clk 0:00:02.3]} 72.
Rf8 {[%clk 0:00:09.2]} 72... Bg6 {[%clk 0:00:01.5]} 73. Ra8 {[%clk 0:00:08.2]}
73... Be4 {[%clk 0:00:02.4]} 74. Re8 {[%clk 0:00:05.6]} 74... Bg6 {[%clk
0:00:01.8]} 75. Re6+ {[%clk 0:00:05.7]} 75... Ka7 {[%clk 0:00:02.3]} 76. Kc1
{[%clk 0:00:05.6]} 76... Kb8 {[%clk 0:00:02.8]} 77. g4 {[%clk 0:00:05.5]} 77...
Ka8 {[%clk 0:00:03.2]} 78. g5 {[%clk 0:00:05.7]} 78... Kb8 {[%clk 0:00:03.9]}
79. Re7 {[%clk 0:00:05.9]} 79... Ka8 {[%clk 0:00:04.5]} 80. Kb2 {[%clk
0:00:05.5]} 80... Kb8 {[%clk 0:00:05.1]} 81. a7+ {[%clk 0:00:05.5]} 81... Ka8
{[%clk 0:00:05.6]} 82. Rc7 {[%clk 0:00:05.4]} 82... Bf5 {[%clk 0:00:05.5]} 83.
Kb3 {[%clk 0:00:04.5]} 83... Bg6 {[%clk 0:00:05.9]} 84. Kb4 {[%clk 0:00:04.3]}
84... Bf5 {[%clk 0:00:06.3]} 85. Kb5 {[%clk 0:00:04.2]} 85... Bg6 {[%clk
0:00:06.7]} 86. Kb6 {[%clk 0:00:04.2]} 86... Bf5 {[%clk 0:00:07.1]} 87. Rc3
{[%clk 0:00:04.1]} 87... h6 {[%clk 0:00:03]} 88. gxh6 {[%clk 0:00:02.4]} 88...
Bh7 {[%clk 0:00:03.4]} 89. Rc8# {[%clk 0:00:01.7]} 1-0